[Event "Late-Titled-Tuesday-Blitz-June-25-2024"]
[Site "Chess.com"]
[Date "2024.06.25"]
[Round "5"]
[White "Cheer_Down"]
[Black "Onthequiet"]
[Result "1/2-1/2"]
[WhiteElo "2485"]
[BlackElo "2316"]
[TimeControl "180+1"]
[EndTime "14:56:50 PDT"]
[Termination "Game drawn by repetition"]

1. e4 {[%clk 0:03:00.9]} 1... c6 {[%clk 0:02:59.6]} 2. d4 {[%clk 0:03:00.2]}
2... d5 {[%clk 0:03:00]} 3. e5 {[%clk 0:03:00]} 3... Bf5 {[%clk 0:02:58.9]} 4.
h4 {[%clk 0:02:59.5]} 4... h5 {[%clk 0:02:58.3]} 5. Bd3 {[%clk 0:02:57.5]} 5...
Bxd3 {[%clk 0:02:57.4]} 6. Qxd3 {[%clk 0:02:56.6]} 6... e6 {[%clk 0:02:57.9]} 7.
Bg5 {[%clk 0:02:54.9]} 7... Be7 {[%clk 0:02:55.9]} 8. Nf3 {[%clk 0:02:35.6]}
8... Nh6 {[%clk 0:02:55.3]} 9. Nc3 {[%clk 0:02:31.9]} 9... Nd7 {[%clk
0:02:53.1]} 10. Ne2 {[%clk 0:02:25]} 10... Nf5 {[%clk 0:02:48.7]} 11. Ng3 {[%clk
0:02:14.3]} 11... Nxg3 {[%clk 0:02:46.3]} 12. fxg3 {[%clk 0:02:15.2]} 12... Qa5+
{[%clk 0:02:31.5]} 13. c3 {[%clk 0:02:11.1]} 13... Qb5 {[%clk 0:02:28.8]} 14.
Qxb5 {[%clk 0:01:40.1]} 14... cxb5 {[%clk 0:02:27.5]} 15. a4 {[%clk 0:01:40]}
15... bxa4 {[%clk 0:02:20.4]} 16. Rxa4 {[%clk 0:01:38]} 16... Nb6 {[%clk
0:02:17.8]} 17. Ra2 {[%clk 0:01:31.5]} 17... f6 {[%clk 0:02:16.9]} 18. Bf4
{[%clk 0:01:27.2]} 18... a6 {[%clk 0:02:09]} 19. Ke2 {[%clk 0:01:18.2]} 19...
Rc8 {[%clk 0:01:52.8]} 20. Kd3 {[%clk 0:01:17.2]} 20... f5 {[%clk 0:01:33.6]}
21. b3 {[%clk 0:01:06.2]} 21... Kd7 {[%clk 0:01:29.9]} 22. Bd2 {[%clk
0:01:05.4]} 22... Rc6 {[%clk 0:01:26.4]} 23. Ng1 {[%clk 0:00:52.4]} 23... Ke8
{[%clk 0:01:12.2]} 24. Ne2 {[%clk 0:00:52.1]} 24... Kf7 {[%clk 0:01:12]} 25. Rf1
{[%clk 0:00:51.1]} 25... g6 {[%clk 0:01:09.3]} 26. Rc1 {[%clk 0:00:43.1]} 26...
Rhc8 {[%clk 0:01:08.5]} 27. Nf4 {[%clk 0:00:40.3]} 27... Bf8 {[%clk 0:01:04.9]}
28. Nh3 {[%clk 0:00:39.9]} 28... Be7 {[%clk 0:01:04.2]} 29. Bg5 {[%clk
0:00:39.4]} 29... Bf8 {[%clk 0:01:02.4]} 30. Rac2 {[%clk 0:00:34.2]} 30... Bg7
{[%clk 0:00:51.7]} 31. Nf2 {[%clk 0:00:32.9]} 31... Bf8 {[%clk 0:00:47.5]} 32.
Nd1 {[%clk 0:00:32.6]} 32... Ba3 {[%clk 0:00:47.5]} 33. Ra1 {[%clk 0:00:31.6]}
33... Bf8 {[%clk 0:00:47.7]} 34. Bc1 {[%clk 0:00:31.2]} 34... Be7 {[%clk
0:00:46.9]} 35. Bf4 {[%clk 0:00:30.5]} 35... Bf8 {[%clk 0:00:44.5]} 36. Ne3
{[%clk 0:00:29]} 36... Be7 {[%clk 0:00:43.7]} 37. Rac1 {[%clk 0:00:25.1]} 37...
Ba3 {[%clk 0:00:43.2]} 38. Rb1 {[%clk 0:00:24.6]} 38... Be7 {[%clk 0:00:42.6]}
39. Nd1 {[%clk 0:00:21.9]} 39... Bf8 {[%clk 0:00:40.4]} 40. Bg5 {[%clk
0:00:20.7]} 40... R6c7 {[%clk 0:00:35.3]} 41. Bc1 {[%clk 0:00:20]} 41... Rc6
{[%clk 0:00:34]} 42. Ra2 {[%clk 0:00:19.6]} 42... Be7 {[%clk 0:00:33.2]} 43. Ba3
{[%clk 0:00:19.8]} 43... Bd8 {[%clk 0:00:28]} 44. Bd6 {[%clk 0:00:18.2]} 44...
g5 {[%clk 0:00:24.6]} 45. hxg5 {[%clk 0:00:17]} 45... Bxg5 {[%clk 0:00:25.5]}
46. Rc2 {[%clk 0:00:17]} 46... Nd7 {[%clk 0:00:18.9]} 47. Nf2 {[%clk 0:00:14.1]}
47... Bh6 {[%clk 0:00:16.8]} 48. Nh3 {[%clk 0:00:13.6]} 48... Kg6 {[%clk
0:00:16.5]} 49. Nf4+ {[%clk 0:00:13.3]} 49... Bxf4 {[%clk 0:00:16.4]} 50. gxf4
{[%clk 0:00:14.2]} 50... Rh8 {[%clk 0:00:16]} 51. Rbc1 {[%clk 0:00:13.8]} 51...
Rhc8 {[%clk 0:00:15.4]} 52. c4 {[%clk 0:00:14]} 52... dxc4+ {[%clk 0:00:15.8]}
53. bxc4 {[%clk 0:00:14]} 53... Nb6 {[%clk 0:00:16.4]} 54. Bc5 {[%clk
0:00:13.1]} 54... Nd7 {[%clk 0:00:16.1]} 55. Bd6 {[%clk 0:00:12.4]} 55... Nb6
{[%clk 0:00:16.1]} 56. Rc3 {[%clk 0:00:11.7]} 56... h4 {[%clk 0:00:15.5]} 57.
R1c2 {[%clk 0:00:11.3]} 57... Kh5 {[%clk 0:00:15.5]} 58. Bb4 {[%clk 0:00:09]}
58... Kg4 {[%clk 0:00:15.4]} 59. Ba5 {[%clk 0:00:09.2]} 59... Nd7 {[%clk
0:00:15.3]} 60. d5 {[%clk 0:00:09.2]} 60... Nc5+ {[%clk 0:00:13.7]} 61. Kd4
{[%clk 0:00:08.9]} 61... R6c7 {[%clk 0:00:11.1]} 62. Bxc7 {[%clk 0:00:08.7]}
62... Rxc7 {[%clk 0:00:12]} 63. d6 {[%clk 0:00:08.9]} 63... Rc8 {[%clk
0:00:11.5]} 64. Rb2 {[%clk 0:00:08.4]} 64... Kxf4 {[%clk 0:00:06.1]} 65. Rf2+
{[%clk 0:00:07.9]} 65... Kg4 {[%clk 0:00:06.3]} 66. Rb2 {[%clk 0:00:08]} 66...
Ne4 {[%clk 0:00:05.8]} 67. Re3 {[%clk 0:00:07.3]} 67... Nc5 {[%clk 0:00:05.6]}
68. Rb6 {[%clk 0:00:06.5]} 68... f4 {[%clk 0:00:03.8]} 69. Ra3 {[%clk
0:00:05.4]} 69... h3 {[%clk 0:00:03.3]} 70. gxh3+ {[%clk 0:00:04.2]} 70... Kf5
{[%clk 0:00:04.2]} 71. h4 {[%clk 0:00:03.7]} 71... Nd7 {[%clk 0:00:04.1]} 72.
Rxb7 {[%clk 0:00:03.3]} 72... Nxe5 {[%clk 0:00:05]} 73. Rf7+ {[%clk 0:00:03.6]}
73... Nxf7 {[%clk 0:00:04.3]} 74. Rxa6 {[%clk 0:00:04]} 74... Rd8 {[%clk
0:00:04.1]} 75. c5 {[%clk 0:00:04.4]} 75... f3 {[%clk 0:00:04.3]} 76. Ra7 {[%clk
0:00:05]} 76... Nxd6 {[%clk 0:00:03.6]} 77. cxd6 {[%clk 0:00:05]} 77... Rxd6+
{[%clk 0:00:04.5]} 78. Ke3 {[%clk 0:00:05.9]} 78... e5 {[%clk 0:00:04.5]} 79.
Rf7+ {[%clk 0:00:06]} 79... Ke6 {[%clk 0:00:04.7]} 80. Rxf3 {[%clk 0:00:06.6]}
80... Rb6 {[%clk 0:00:05.1]} 81. Kf2 {[%clk 0:00:05.3]} 81... Rb4 {[%clk
0:00:05]} 82. Kg3 {[%clk 0:00:05.4]} 82... Rb1 {[%clk 0:00:05.1]} 83. Rf8 {[%clk
0:00:05.3]} 83... Rh1 {[%clk 0:00:05.3]} 84. h5 {[%clk 0:00:04.8]} 84... e4
{[%clk 0:00:05.7]} 85. Ra8 {[%clk 0:00:04.2]} 85... Rxh5 {[%clk 0:00:05.4]} 86.
Ra4 {[%clk 0:00:03.6]} 86... Rh7 {[%clk 0:00:04.1]} 87. Kf4 {[%clk 0:00:03.3]}
87... Rh4+ {[%clk 0:00:03.9]} 88. Ke3 {[%clk 0:00:02.7]} 88... Rh2 {[%clk
0:00:04.1]} 89. Rxe4+ {[%clk 0:00:02.4]} 89... Kf5 {[%clk 0:00:05]} 90. Rf4+
{[%clk 0:00:02.8]} 90... Ke5 {[%clk 0:00:05.2]} 91. Re4+ {[%clk 0:00:03.3]}
91... Kf5 {[%clk 0:00:05.7]} 92. Rf4+ {[%clk 0:00:03.8]} 92... Ke5 {[%clk
0:00:06.2]} 93. Re4+ {[%clk 0:00:04.3]} 93... Kf5 {[%clk 0:00:06.8]} 1/2-1/2

[Event "Late-Titled-Tuesday-Blitz-June-25-2024"]
[Site "Chess.com"]
[Date "2024.06.25"]
[Round "5"]
[White "Romadk"]
[Black "N_I_Chess"]
[Result "1/2-1/2"]
[WhiteElo "2467"]
[BlackElo "2275"]
[TimeControl "180+1"]
[EndTime "14:57:34 PDT"]
[Termination "Game drawn by repetition"]

1. d4 {[%clk 0:03:00.9]} 1... Nf6 {[%clk 0:02:50.6]} 2. Nf3 {[%clk 0:03:00.8]}
2... d5 {[%clk 0:02:50.6]} 3. g3 {[%clk 0:03:00.9]} 3... Bf5 {[%clk 0:02:44.1]}
4. Bg2 {[%clk 0:03:01.1]} 4... e6 {[%clk 0:02:43.8]} 5. c4 {[%clk 0:02:59.8]}
5... c6 {[%clk 0:02:38.3]} 6. Nc3 {[%clk 0:03:00.6]} 6... Nbd7 {[%clk
0:02:36.3]} 7. Qb3 {[%clk 0:03:01]} 7... Qb6 {[%clk 0:02:36]} 8. c5 {[%clk
0:03:01.4]} 8... Qxb3 {[%clk 0:02:27.5]} 9. axb3 {[%clk 0:03:02.3]} 9... b6
{[%clk 0:02:04.6]} 10. b4 {[%clk 0:03:00]} 10... a5 {[%clk 0:02:00.2]} 11. cxb6
{[%clk 0:02:48.6]} 11... Bxb4 {[%clk 0:01:58.2]} 12. O-O {[%clk 0:02:25.3]}
12... Nxb6 {[%clk 0:01:39.5]} 13. Ne5 {[%clk 0:02:24.8]} 13... O-O {[%clk
0:01:24.8]} 14. Nxc6 {[%clk 0:02:23.5]} 14... Rfc8 {[%clk 0:00:54.2]} 15. Ne5
{[%clk 0:02:11.7]} 15... Bxc3 {[%clk 0:00:51.1]} 16. bxc3 {[%clk 0:02:12.6]}
16... a4 {[%clk 0:00:41.7]} 17. Bb2 {[%clk 0:02:11.4]} 17... Nc4 {[%clk
0:00:31.8]} 18. Nxc4 {[%clk 0:02:08.3]} 18... Rxc4 {[%clk 0:00:30.3]} 19. Ra3
{[%clk 0:02:07.5]} 19... Rb8 {[%clk 0:00:28.5]} 20. Ba1 {[%clk 0:02:04.6]} 20...
Bc2 {[%clk 0:00:16.4]} 21. Rc1 {[%clk 0:01:43.6]} 21... Bb3 {[%clk 0:00:14.4]}
22. e3 {[%clk 0:01:39.7]} 22... Rc7 {[%clk 0:00:08]} 23. Bf1 {[%clk 0:01:39.6]}
23... Ne4 {[%clk 0:00:05.9]} 24. f3 {[%clk 0:01:19.2]} 24... Nd2 {[%clk
0:00:06]} 25. Kf2 {[%clk 0:01:19.1]} 25... Kf8 {[%clk 0:00:06.6]} 26. Bd3 {[%clk
0:01:19]} 26... Bc4 {[%clk 0:00:04.6]} 27. Bc2 {[%clk 0:01:15.7]} 27... Bb3
{[%clk 0:00:03.9]} 28. Bd3 {[%clk 0:01:13.3]} 28... Nc4 {[%clk 0:00:02.9]} 29.
Bxc4 {[%clk 0:01:00.7]} 29... Rxc4 {[%clk 0:00:03.8]} 30. Bb2 {[%clk 0:00:54.9]}
30... Rbc8 {[%clk 0:00:03.8]} 31. Ke2 {[%clk 0:00:52]} 31... Ke7 {[%clk
0:00:04.4]} 32. Kd3 {[%clk 0:00:52.2]} 32... Kd7 {[%clk 0:00:04.8]} 33. e4
{[%clk 0:00:52.5]} 33... R4c6 {[%clk 0:00:04.3]} 34. Raa1 {[%clk 0:00:51.7]}
34... Bc4+ {[%clk 0:00:04.4]} 35. Kd2 {[%clk 0:00:51.6]} 35... Rb6 {[%clk
0:00:04.6]} 36. Ba3 {[%clk 0:00:51.7]} 36... Rcb8 {[%clk 0:00:04.4]} 37. Bb4
{[%clk 0:00:51.9]} 37... Bb3 {[%clk 0:00:04]} 38. e5 {[%clk 0:00:40]} 38... Rc8
{[%clk 0:00:03.3]} 39. Rf1 {[%clk 0:00:38.1]} 39... g6 {[%clk 0:00:03.6]} 40. f4
{[%clk 0:00:37.3]} 40... Ra6 {[%clk 0:00:03.8]} 41. Ra3 {[%clk 0:00:36.2]} 41...
Rac6 {[%clk 0:00:02.6]} 42. Rf2 {[%clk 0:00:36]} 42... h5 {[%clk 0:00:03.3]} 43.
h3 {[%clk 0:00:35.8]} 43... Rh8 {[%clk 0:00:03.4]} 44. Ra1 {[%clk 0:00:28]}
44... Rcc8 {[%clk 0:00:03.3]} 45. Bc5 {[%clk 0:00:27.8]} 45... Rce8 {[%clk
0:00:03]} 46. Kc1 {[%clk 0:00:23.5]} 46... Rc8 {[%clk 0:00:03]} 47. Kb2 {[%clk
0:00:23.7]} 47... Rc7 {[%clk 0:00:03.2]} 48. Ka3 {[%clk 0:00:23.9]} 48... Rb7
{[%clk 0:00:03.3]} 49. Rh1 {[%clk 0:00:22.8]} 49... Bc4 {[%clk 0:00:03.7]} 50.
Bb4 {[%clk 0:00:23]} 50... Bb3 {[%clk 0:00:03.7]} 51. Rfh2 {[%clk 0:00:22.2]}
51... Rbb8 {[%clk 0:00:04]} 52. g4 {[%clk 0:00:22.6]} 52... hxg4 {[%clk
0:00:04.9]} 53. hxg4 {[%clk 0:00:23.5]} 53... Rxh2 {[%clk 0:00:05.2]} 54. Rxh2
{[%clk 0:00:24.4]} 54... Rg8 {[%clk 0:00:05.4]} 55. Rh7 {[%clk 0:00:24.1]} 55...
Ke8 {[%clk 0:00:06.1]} 56. Rh2 {[%clk 0:00:20]} 56... Kd7 {[%clk 0:00:04.3]} 57.
Rf2 {[%clk 0:00:20.1]} 57... Ke8 {[%clk 0:00:02.9]} 58. f5 {[%clk 0:00:20.5]}
58... gxf5 {[%clk 0:00:03.2]} 59. gxf5 {[%clk 0:00:21.4]} 59... Rh8 {[%clk
0:00:01.1]} 60. fxe6 {[%clk 0:00:21.4]} 60... fxe6 {[%clk 0:00:02]} 61. Rf6
{[%clk 0:00:21.7]} 61... Kd7 {[%clk 0:00:02.2]} 62. Rf7+ {[%clk 0:00:21.7]}
62... Kc6 {[%clk 0:00:02.2]} 63. Re7 {[%clk 0:00:21.2]} 63... Rh6 {[%clk
0:00:02.8]} 64. Re8 {[%clk 0:00:18.5]} 64... Kb5 {[%clk 0:00:02.8]} 65. Rb8+
{[%clk 0:00:18.2]} 65... Kc4 {[%clk 0:00:03.1]} 66. Rc8+ {[%clk 0:00:18.1]}
66... Kd3 {[%clk 0:00:03.6]} 67. Bd6 {[%clk 0:00:15]} 67... Kc2 {[%clk
0:00:03.2]} 68. Bf8 {[%clk 0:00:14.4]} 68... Rh1 {[%clk 0:00:03.1]} 69. Kb4
{[%clk 0:00:14.6]} 69... Rg1 {[%clk 0:00:02.9]} 70. Rc6 {[%clk 0:00:14]} 70...
Rg6 {[%clk 0:00:02.5]} 71. Be7 {[%clk 0:00:13.6]} 71... Kb2 {[%clk 0:00:02.6]}
72. Ra6 {[%clk 0:00:12.7]} 72... Rg3 {[%clk 0:00:01.7]} 73. Bf6 {[%clk 0:00:13]}
73... Rxc3 {[%clk 0:00:01.9]} 74. Rxe6 {[%clk 0:00:12.4]} 74... a3 {[%clk
0:00:01.7]} 75. Ra6 {[%clk 0:00:12.6]} 75... a2 {[%clk 0:00:02.3]} 76. e6 {[%clk
0:00:11.2]} 76... Rc4+ {[%clk 0:00:02.2]} 77. Kb5 {[%clk 0:00:11.2]} 77... a1=Q
{[%clk 0:00:02]} 78. Rxa1 {[%clk 0:00:11.8]} 78... Kxa1 {[%clk 0:00:02.7]} 79.
e7 {[%clk 0:00:12.7]} 79... Rc8 {[%clk 0:00:03.2]} 80. Be5 {[%clk 0:00:09.9]}
80... Re8 {[%clk 0:00:03.7]} 81. Bd6 {[%clk 0:00:09.6]} 81... Kb2 {[%clk
0:00:04.1]} 82. Kc6 {[%clk 0:00:10.3]} 82... Kc3 {[%clk 0:00:04.2]} 83. Kd7
{[%clk 0:00:10.4]} 83... Ba4+ {[%clk 0:00:04.9]} 84. Ke6 {[%clk 0:00:11]} 84...
Kc4 {[%clk 0:00:05.6]} 85. Bc7 {[%clk 0:00:10.8]} 85... Bb5 {[%clk 0:00:05.5]}
86. Be5 {[%clk 0:00:11.5]} 86... Ba4 {[%clk 0:00:05.6]} 87. Kd6 {[%clk
0:00:12.2]} 87... Bb5 {[%clk 0:00:05.5]} 88. Ke6 {[%clk 0:00:13.1]} 88... Rc8
{[%clk 0:00:05.4]} 89. Kd6 {[%clk 0:00:14]} 89... Be8 {[%clk 0:00:05.5]} 90. Ke6
{[%clk 0:00:14.2]} 90... Rc6+ {[%clk 0:00:04.8]} 91. Kf5 {[%clk 0:00:13.7]}
91... Kb5 {[%clk 0:00:05]} 92. Bf6 {[%clk 0:00:11.9]} 92... Bd7+ {[%clk
0:00:05.1]} 93. Ke5 {[%clk 0:00:12.8]} 93... Kc4 {[%clk 0:00:04.7]} 94. Bg5
{[%clk 0:00:13.5]} 94... Re6+ {[%clk 0:00:05.1]} 95. Kf5 {[%clk 0:00:13.7]}
95... Rxe7+ {[%clk 0:00:05.3]} 96. Kf4 {[%clk 0:00:14]} 96... Re4+ {[%clk
0:00:06.2]} 97. Kf3 {[%clk 0:00:14.6]} 97... Bf5 {[%clk 0:00:05.8]} 98. Be3
{[%clk 0:00:15.5]} 98... Kc3 {[%clk 0:00:05.5]} 99. Bf4 {[%clk 0:00:15.7]} 99...
Kd3 {[%clk 0:00:05.4]} 100. Be5 {[%clk 0:00:16.6]} 100... Re1 {[%clk 0:00:04.2]}
101. Bf4 {[%clk 0:00:17.5]} 101... Be4+ {[%clk 0:00:04.4]} 102. Kg3 {[%clk
0:00:18.4]} 102... Kxd4 {[%clk 0:00:04.6]} 103. Kf2 {[%clk 0:00:19.3]} 103...
Rd1 {[%clk 0:00:04.6]} 104. Bh6 {[%clk 0:00:19.3]} 104... Rd3 {[%clk 0:00:05.5]}
105. Bg7+ {[%clk 0:00:20.2]} 105... Kc4 {[%clk 0:00:06.1]} 106. Bf6 {[%clk
0:00:20.3]} 106... Rb3 {[%clk 0:00:06.7]} 107. Be7 {[%clk 0:00:20]} 107... d4
{[%clk 0:00:07.6]} 108. Bf6 {[%clk 0:00:20.6]} 108... Rf3+ {[%clk 0:00:07.8]}
109. Ke2 {[%clk 0:00:20.8]} 109... Rh3 {[%clk 0:00:08.7]} 110. Kd2 {[%clk
0:00:21.7]} 110... Rh2+ {[%clk 0:00:07.9]} 111. Kc1 {[%clk 0:00:22]} 111... d3
{[%clk 0:00:08]} 112. Be5 {[%clk 0:00:22.9]} 112... Kb3 {[%clk 0:00:07.6]} 113.
Bxh2 {[%clk 0:00:22.7]} 113... Kc3 {[%clk 0:00:04.5]} 114. Bf4 {[%clk
0:00:21.8]} 114... Kc4 {[%clk 0:00:05.4]} 115. Bd2 {[%clk 0:00:22.1]} 115... Kd4
{[%clk 0:00:05.6]} 116. Bh6 {[%clk 0:00:22]} 116... Bf3 {[%clk 0:00:02.3]} 117.
Bd2 {[%clk 0:00:22.5]} 117... Be4 {[%clk 0:00:03.2]} 118. Bh6 {[%clk 0:00:22.9]}
118... Bf3 {[%clk 0:00:04.1]} 119. Bd2 {[%clk 0:00:23.6]} 119... Be4 {[%clk
0:00:05]} 1/2-1/2

[Event "Late-Titled-Tuesday-Blitz-June-25-2024"]
[Site "Chess.com"]
[Date "2024.06.25"]
[Round "6"]
[White "FredddieCroderg"]
[Black "MoldyTofu"]
[Result "1-0"]
[WhiteElo "2340"]
[BlackElo "2040"]
[TimeControl "180+1"]
[EndTime "14:59:29 PDT"]
[Termination "FredddieCroderg won by resignation"]

1. e4 {[%clk 0:03:00.3]} 1... e6 {[%clk 0:03:00.2]} 2. d4 {[%clk 0:02:59.2]}
2... d5 {[%clk 0:03:01.1]} 3. exd5 {[%clk 0:02:59.3]} 3... Qxd5 {[%clk
0:03:01.7]} 4. Nf3 {[%clk 0:02:57.7]} 4... c5 {[%clk 0:03:01.8]} 5. c4 {[%clk
0:02:55.5]} 5... Qd8 {[%clk 0:03:01.1]} 6. d5 {[%clk 0:02:55.1]} 6... exd5
{[%clk 0:03:01.1]} 7. cxd5 {[%clk 0:02:55.1]} 7... Nf6 {[%clk 0:03:02]} 8. Nc3
{[%clk 0:02:51.1]} 8... Bd6 {[%clk 0:03:01.9]} 9. Bb5+ {[%clk 0:02:48.8]} 9...
Bd7 {[%clk 0:03:01.2]} 10. O-O {[%clk 0:02:49.2]} 10... Bxb5 {[%clk 0:02:55.1]}
11. Re1+ {[%clk 0:02:48]} 11... Be7 {[%clk 0:02:52.8]} 12. Nxb5 {[%clk
0:02:47.7]} 12... a6 {[%clk 0:02:36.5]} 13. d6 {[%clk 0:02:40.8]} 13... axb5
{[%clk 0:02:36.5]} 14. Rxe7+ {[%clk 0:02:39.4]} 14... Kf8 {[%clk 0:02:36.5]} 15.
Ne5 {[%clk 0:02:29.7]} 1-0

[Event "Late-Titled-Tuesday-Blitz-June-25-2024"]
[Site "Chess.com"]
[Date "2024.06.25"]
[Round "6"]
[White "mouseslips_are_the_best"]
[Black "Gabrielian_Artur"]
[Result "0-1"]
[WhiteElo "2379"]
[BlackElo "2728"]
[TimeControl "180+1"]
[EndTime "14:59:49 PDT"]
[Termination "Gabrielian_Artur won by resignation"]

1. e4 {[%clk 0:03:00.9]} 1... c5 {[%clk 0:02:59.9]} 2. Nf3 {[%clk 0:03:00.9]}
2... d6 {[%clk 0:03:00.3]} 3. d4 {[%clk 0:03:01]} 3... cxd4 {[%clk 0:03:00.8]}
4. Nxd4 {[%clk 0:03:01.9]} 4... Nf6 {[%clk 0:03:01.2]} 5. Nc3 {[%clk 0:03:02.4]}
5... Nc6 {[%clk 0:03:01.6]} 6. Bc4 {[%clk 0:03:02.3]} 6... e6 {[%clk 0:03:00.7]}
7. Be3 {[%clk 0:03:01.9]} 7... a6 {[%clk 0:02:59.5]} 8. Qe2 {[%clk 0:03:02]}
8... Qc7 {[%clk 0:02:59.4]} 9. O-O-O {[%clk 0:03:01.8]} 9... Na5 {[%clk
0:02:59.5]} 10. Bd3 {[%clk 0:03:01.1]} 10... b5 {[%clk 0:02:59.7]} 11. a3 {[%clk
0:02:56.4]} 11... Rb8 {[%clk 0:02:59.2]} 12. f4 {[%clk 0:02:54.9]} 12... b4
{[%clk 0:02:59]} 13. axb4 {[%clk 0:02:54.1]} 13... Rxb4 {[%clk 0:02:59.1]} 14.
g4 {[%clk 0:02:50.7]} 14... Nc4 {[%clk 0:02:51.2]} 15. Bxc4 {[%clk 0:02:48.6]}
15... Rxc4 {[%clk 0:02:51.2]} 16. g5 {[%clk 0:02:47.4]} 16... Rxc3 {[%clk
0:02:50.6]} 17. bxc3 {[%clk 0:02:41.5]} 17... Nxe4 {[%clk 0:02:50.2]} 18. Bd2
{[%clk 0:02:26.1]} 18... d5 {[%clk 0:02:49.3]} 19. f5 {[%clk 0:02:20.1]} 19...
Ba3+ {[%clk 0:02:47.3]} 20. Kb1 {[%clk 0:02:18.1]} 20... Nxc3+ {[%clk
0:02:45.6]} 21. Bxc3 {[%clk 0:02:13.8]} 21... Qxc3 {[%clk 0:02:45.6]} 0-1

[Event "Late-Titled-Tuesday-Blitz-June-25-2024"]
[Site "Chess.com"]
[Date "2024.06.25"]
[Round "6"]
[White "AlejandroArias"]
[Black "JEHUBNER"]
[Result "1-0"]
[WhiteElo "2360"]
[BlackElo "1983"]
[TimeControl "180+1"]
[EndTime "15:00:23 PDT"]
[Termination "AlejandroArias won by resignation"]

1. e4 {[%clk 0:03:00.9]} 1... c5 {[%clk 0:03:00.2]} 2. Nf3 {[%clk 0:03:00.3]}
2... d6 {[%clk 0:03:00.2]} 3. Bb5+ {[%clk 0:02:59.6]} 3... Bd7 {[%clk
0:02:59.4]} 4. Bxd7+ {[%clk 0:02:59]} 4... Qxd7 {[%clk 0:03:00.3]} 5. c4 {[%clk
0:02:59.1]} 5... Nf6 {[%clk 0:03:00.2]} 6. Nc3 {[%clk 0:02:58.6]} 6... Nc6
{[%clk 0:03:00.8]} 7. d4 {[%clk 0:02:58.1]} 7... e6 {[%clk 0:03:00.7]} 8. d5
{[%clk 0:02:48.7]} 8... Nd8 {[%clk 0:02:43.5]} 9. e5 {[%clk 0:02:39.6]} 9...
dxe5 {[%clk 0:02:34.5]} 10. Nxe5 {[%clk 0:02:39.3]} 10... Qc7 {[%clk 0:02:34.3]}
11. Qa4+ {[%clk 0:02:20.9]} 11... Nd7 {[%clk 0:02:29]} 12. Bf4 {[%clk
0:02:14.9]} 12... Bd6 {[%clk 0:02:22.4]} 13. Nb5 {[%clk 0:02:14.3]} 13... Qb8
{[%clk 0:02:20.2]} 14. Nxd7 {[%clk 0:02:09.3]} 14... Kxd7 {[%clk 0:02:08.1]} 15.
Nxd6+ {[%clk 0:02:07.3]} 15... Ke7 {[%clk 0:02:05.1]} 16. Nf5+ {[%clk
0:02:05.4]} 1-0

[Event "Late-Titled-Tuesday-Blitz-June-25-2024"]
[Site "Chess.com"]
[Date "2024.06.25"]
[Round "6"]
[White "MITerryble"]
[Black "Javokhir_Sindarov05"]
[Result "0-1"]
[WhiteElo "2974"]
[BlackElo "3076"]
[TimeControl "180+1"]
[EndTime "15:01:59 PDT"]
[Termination "Javokhir_Sindarov05 won by resignation"]

1. b3 {[%clk 0:03:00.9]} 1... e5 {[%clk 0:02:58.8]} 2. Bb2 {[%clk 0:03:01.1]}
2... Nc6 {[%clk 0:02:59.5]} 3. e3 {[%clk 0:03:00.9]} 3... g6 {[%clk 0:03:00]} 4.
Nf3 {[%clk 0:02:55.4]} 4... Bg7 {[%clk 0:02:59.9]} 5. d4 {[%clk 0:02:55.9]} 5...
d6 {[%clk 0:02:50.2]} 6. dxe5 {[%clk 0:02:52.1]} 6... Nxe5 {[%clk 0:02:48.2]} 7.
Nxe5 {[%clk 0:02:52]} 7... Bxe5 {[%clk 0:02:49.1]} 8. Bxe5 {[%clk 0:02:51.4]}
8... dxe5 {[%clk 0:02:50]} 9. Qxd8+ {[%clk 0:02:51.6]} 9... Kxd8 {[%clk
0:02:50.9]} 10. Na3 {[%clk 0:02:45.9]} 10... Ke7 {[%clk 0:02:21.4]} 11. Nc4
{[%clk 0:02:42.4]} 11... f6 {[%clk 0:02:18.4]} 12. Na5 {[%clk 0:02:42.3]} 12...
Nh6 {[%clk 0:02:07]} 13. O-O-O {[%clk 0:02:41.6]} 13... Rb8 {[%clk 0:01:44.4]}
14. Ba6 {[%clk 0:02:21.2]} 14... Nf7 {[%clk 0:01:31.1]} 15. Rd2 {[%clk
0:02:14.9]} 15... Rd8 {[%clk 0:01:31.1]} 16. Rhd1 {[%clk 0:02:13.3]} 16... Rxd2
{[%clk 0:01:27.7]} 17. Rxd2 {[%clk 0:02:14.2]} 17... Nd6 {[%clk 0:01:25.6]} 18.
Bd3 {[%clk 0:02:14.8]} 18... Be6 {[%clk 0:01:15.7]} 19. c4 {[%clk 0:02:08.3]}
19... c5 {[%clk 0:01:15.7]} 20. a3 {[%clk 0:01:45.6]} 20... Rc8 {[%clk
0:01:14.4]} 21. b4 {[%clk 0:01:40.8]} 21... cxb4 {[%clk 0:01:10]} 22. axb4
{[%clk 0:01:41.7]} 22... b6 {[%clk 0:01:10.6]} 0-1

[Event "Late-Titled-Tuesday-Blitz-June-25-2024"]
[Site "Chess.com"]
[Date "2024.06.25"]
[Round "6"]
[White "ArmanGhevondyanchess"]
[Black "petr577"]
[Result "1-0"]
[WhiteElo "2612"]
[BlackElo "2365"]
[TimeControl "180+1"]
[EndTime "15:02:11 PDT"]
[Termination "ArmanGhevondyanchess won by resignation"]

1. Nf3 {[%clk 0:03:00.9]} 1... Nf6 {[%clk 0:02:58.2]} 2. g3 {[%clk 0:03:01.3]}
2... g6 {[%clk 0:02:58.7]} 3. Bg2 {[%clk 0:03:01.9]} 3... Bg7 {[%clk 0:02:59.4]}
4. O-O {[%clk 0:03:02.8]} 4... O-O {[%clk 0:03:00]} 5. d4 {[%clk 0:03:03.4]}
5... d6 {[%clk 0:03:00.6]} 6. b3 {[%clk 0:03:03.9]} 6... Nbd7 {[%clk 0:02:59.4]}
7. Bb2 {[%clk 0:03:04.5]} 7... e5 {[%clk 0:02:40.3]} 8. dxe5 {[%clk 0:03:04]}
8... Ng4 {[%clk 0:02:39.8]} 9. c4 {[%clk 0:03:04.1]} 9... Re8 {[%clk 0:02:34.9]}
10. Nc3 {[%clk 0:03:03.2]} 10... Ngxe5 {[%clk 0:02:34.5]} 11. Qd2 {[%clk
0:03:02.9]} 11... Nxf3+ {[%clk 0:02:25.3]} 12. Bxf3 {[%clk 0:03:02.9]} 12... Rb8
{[%clk 0:02:25.3]} 13. Rad1 {[%clk 0:03:02.7]} 13... h5 {[%clk 0:01:54.7]} 14.
Rfe1 {[%clk 0:02:56.8]} 14... h4 {[%clk 0:01:52.9]} 15. Nd5 {[%clk 0:02:52.9]}
15... Ne5 {[%clk 0:01:44.4]} 16. Bg2 {[%clk 0:02:52.2]} 16... h3 {[%clk
0:01:42.1]} 17. Bh1 {[%clk 0:02:52.5]} 17... Bd7 {[%clk 0:01:22.7]} 18. f4
{[%clk 0:02:50.4]} 18... Ng4 {[%clk 0:01:10.7]} 19. Bxg7 {[%clk 0:02:43.1]}
19... Kxg7 {[%clk 0:01:11.6]} 20. e4 {[%clk 0:02:43]} 20... c6 {[%clk
0:01:08.6]} 21. Ne3 {[%clk 0:02:38.4]} 21... Qb6 {[%clk 0:00:56.9]} 22. Qd4+
{[%clk 0:02:38.4]} 22... Qxd4 {[%clk 0:00:17.7]} 23. Rxd4 {[%clk 0:02:39.3]}
23... Nf6 {[%clk 0:00:17.8]} 24. Rxd6 {[%clk 0:02:38.3]} 24... Bg4 {[%clk
0:00:17.8]} 25. e5 {[%clk 0:02:37.6]} 25... Rbd8 {[%clk 0:00:10.8]} 26. Rxd8
{[%clk 0:02:34.4]} 26... Kf8 {[%clk 0:00:11.6]} 1-0